fUSD/lending_fUSD_20241202
["ID","MTS","AMOUNT","RATE_DAILY","PERIOD"]
[343998479,1733173884302,-2348.9,0.00025,120]
[343998480,1733173884312,-500.0,0.00025,120]
[343998481,1733173884322,-500.0,0.00025,120]
[343998482,1733173884332,-500.0,0.00025,120]
[343998483,1733173884347,-500.0,0.00025,120]
[343998484,1733173884357,-1617.44,0.00025,120]
[343998485,1733173884367,-1282.12,0.00025,120]
[343998486,1733173884376,-500.0,0.00025,120]
[343998487,1733173884385,-500.0,0.00025,120]
[343998488,1733173884395,-1078.12,0.00025,120]
[343998489,1733173884405,-500.0,0.00025,120]
[343998490,1733173884415,-940.92,0.00025,120]
[343998491,1733173884425,-150.0,0.00025,120]
[343998492,1733173884434,-500.0,0.00025,120]
[343998493,1733173884444,-500.0,0.00025,120]
[343998494,1733173884454,-500.0,0.00025,2]
[343998495,1733173884463,-500.0,0.00025,2]
[343998496,1733173884473,-500.0,0.00025,2]
[343998497,1733173884483,-500.0,0.00025,2]
[343998498,1733173884493,-500.0,0.00025,2]
[343998499,1733173884503,-500.0,0.00025,2]
[343998500,1733173884514,-500.0,0.00025,2]
[343998501,1733173884524,-500.0,0.00025,2]
[343998502,1733173884533,-500.0,0.00025,120]
[343998503,1733173884543,-500.0,0.00025,2]
[343998504,1733173884553,-500.0,0.00025,2]
[343998505,1733173884564,-500.0,0.00025,2]
[343998506,1733173884575,-512.71650271,0.00025,120]
[343998507,1733173884590,-500.0,0.00025,30]
[343998508,1733173884602,-500.0,0.00025,120]
[343998509,1733173884612,-500.0,0.00025,2]
[343998510,1733173884623,-500.0,0.00025,2]
[343998511,1733173884633,-500.0,0.00025,2]
[343998512,1733173884643,-500.0,0.00025,2]
[343998513,1733173884654,-500.0,0.00025,2]
[343998514,1733173884665,-500.0,0.00025,2]
[343998515,1733173884674,-500.0,0.00025,2]
[343998516,1733173884685,-500.0,0.00025,2]
[343998517,1733173884695,-500.0,0.00025,2]
[343998518,1733173884705,-500.0,0.00025,120]
[343998519,1733173884714,-500.0,0.00025,2]
[343998520,1733173884724,-691.66,0.00025,120]
[343998521,1733173884734,-500.0,0.00025,60]
[343998522,1733173884743,-500.0,0.00025,2]
[343998523,1733173884753,-500.0,0.00025,120]
[343998524,1733173884763,-312.09968013,0.00025,2]
[343998525,1733173884773,-1571.16,0.00025,120]
[343998526,1733173884783,-1223.14,0.00025,120]
[343998527,1733173884793,-500.0,0.00025,120]
[343998528,1733173884803,-500.0,0.00025,120]
[343998529,1733173884813,-500.0,0.00025,120]
[343998530,1733173884824,-503.23258095,0.00025,120]
[343998531,1733173884834,-500.0,0.00025,120]
[343998532,1733173884846,-500.0,0.00025,120]
[343998533,1733173884856,-500.0,0.00025,120]
[343998534,1733173884866,-498.3135545,0.00025,120]
[343998535,1733173884876,-5000.0,0.00025,120]
[343998536,1733173884886,-500.0,0.00025,120]
[343998537,1733173884896,-500.0,0.00025,120]
[343998538,1733173884905,-1350.61,0.00025,120]
[343998539,1733173884915,-1568.88,0.00025,120]
[343998540,1733173884925,-2663.86,0.00025,120]
[343998541,1733173884934,-621.59,0.00025,120]
[343998542,1733173884946,-500.0,0.00025,120]
[343998543,1733173884956,-636.28,0.00025,120]
[343998544,1733173884966,-500.0,0.00025,120]
[343998545,1733173884977,-693.25,0.00025,120]
[343998546,1733173884987,-185.74454809,0.00025,120]
[343998547,1733173884997,-500.0,0.00025,120]
[343998548,1733173885007,-500.0,0.00025,120]
[343998549,1733173885017,-500.0,0.00025,120]
[343998550,1733173885026,-500.0,0.00025,120]
[343998551,1733173885036,-868.6,0.00025,120]
[343998552,1733173885045,-1577.1,0.00025,120]
[343998553,1733173885054,-434.51448135,0.00025,120]
[343998554,1733173885064,-500.0,0.00025,120]
[343998555,1733173885073,-1166.05,0.00025,120]
[343998556,1733173885083,-566.77,0.00025,120]
[343998557,1733173885094,-1978.5,0.00025,120]
[343998558,1733173885104,-500.0,0.00025,120]
[343998559,1733173885114,-1500.0,0.00025,120]
[343998560,1733173885123,-500.0,0.00025,120]
[343998561,1733173885132,-500.0,0.00025,120]
[343998562,1733173885142,-500.0,0.00025,120]
[343998563,1733173885151,-1747.08,0.00025,120]
[343998564,1733173885161,-536.0,0.00025,120]
[343998565,1733173885171,-500.0,0.00025,120]
[343998566,1733173885180,-1118.31,0.00025,120]
[343998567,1733173885190,-500.0,0.00025,120]
[343998568,1733173885199,-500.0,0.00025,120]
[343998569,1733173885209,-500.0,0.00025,120]
[343998570,1733173885218,-570.74,0.00025,120]
[343998571,1733173885227,-1482.82,0.00025,120]
[343998572,1733173885237,-500.0,0.00025,120]
[343998573,1733173885247,-500.0,0.00025,120]
[343998574,1733173885256,-967.04,0.00025,120]
[343998575,1733173885266,-1001.25,0.00025,120]
[343998576,1733173885275,-750.49,0.00025,120]
[343998577,1733173885285,-500.0,0.00025,120]
[343998578,1733173885294,-552.4014609,0.00025,120]
[343998579,1733173885303,-465.50780383,0.00025,120]
[343998580,1733173885313,-1232.81,0.00025,120]
[343998581,1733173885322,-500.0,0.00025,120]
[343998582,1733173885331,-500.0,0.00025,120]
[343998583,1733173885343,-1574.41,0.00025,120]
[343998584,1733173885352,-500.0,0.00025,120]
[343998585,1733173885361,-500.0,0.00025,120]
[343998586,1733173885371,-958.2,0.00025,120]
[343998587,1733173885381,-500.0,0.00025,120]
[343998588,1733173885390,-500.0,0.00025,120]
[343998589,1733173885399,-500.0,0.00025,120]
[343998590,1733173885410,-783.5,0.00025,120]
[343998591,1733173885419,-500.0,0.00025,120]
[343998592,1733173885429,-500.0,0.00025,120]
[343998593,1733173885439,-500.0,0.00025,120]
[343998594,1733173885448,-500.0,0.00025,120]
[343998595,1733173885457,-500.0,0.00025,120]
[343998596,1733173885467,-500.0,0.00025,120]
[343998597,1733173885477,-497.87479111,0.00025,120]
[343998598,1733173885486,-500.0,0.00025,120]
[343998599,1733173885496,-500.0,0.00025,120]
[343998600,1733173885505,-500.0,0.00025,120]
[343998601,1733173885515,-500.0,0.00025,120]
[343998602,1733173885525,-610.35,0.00025,120]
[343998603,1733173885535,-552.63,0.00025,120]
[343998604,1733173885544,-500.0,0.00025,120]
[343998605,1733173885554,-500.0,0.00025,120]
[343998606,1733173885564,-500.0,0.00025,120]
[343998607,1733173885573,-500.0,0.00025,120]
[343998608,1733173885582,-500.0,0.00025,120]
[343998609,1733173885594,-500.0,0.00025,120]
[343998610,1733173885604,-500.0,0.00025,120]
[343998611,1733173885614,-841.84,0.00025,120]
[343998612,1733173885623,-500.0,0.00025,120]
[343998613,1733173885633,-500.0,0.00025,120]
[343998614,1733173885643,-500.0,0.00025,120]
[343998615,1733173885652,-500.0,0.00025,120]
[343998616,1733173885662,-911.1,0.00025,120]
[343998617,1733173885672,-500.0,0.00025,120]
[343998618,1733173885681,-500.0,0.00025,120]
[343998619,1733173885691,-815.5,0.00025,120]
[343998620,1733173885700,-500.0,0.00025,120]
[343998621,1733173885710,-500.0,0.00025,120]
[343998622,1733173885720,-1276.41,0.00025,120]
[343998623,1733173885730,-1476.76,0.00025,120]
[343998624,1733173885739,-1004.13,0.00025,120]
[343998625,1733173885749,-640.85,0.00025,120]
[343998626,1733173885759,-500.0,0.00025,120]
[343998627,1733173885769,-500.0,0.00025,120]
[343998628,1733173885778,-525.61,0.00025,120]
[343998629,1733173885788,-500.0,0.00025,7]
[343998630,1733173885797,-500.0,0.00025,120]
[343998631,1733173885806,-500.0,0.00025,120]
[343998632,1733173885816,-500.0,0.00025,120]
[343998633,1733173885825,-500.0,0.00025,120]
[343998634,1733173885835,-500.0,0.00025,120]
[343998635,1733173885847,-2509.7,0.00025,120]
[343998636,1733173885859,-903.62,0.00025,120]
[343998637,1733173885868,-500.0,0.00025,120]
[343998638,1733173885878,-500.0,0.00025,120]
[343998639,1733173885887,-500.0,0.00025,120]
[343998640,1733173885898,-500.0,0.00025,120]
[343998641,1733173885908,-500.0,0.00025,120]
[343998642,1733173885918,-1173.76,0.00025,120]
[343998643,1733173885927,-795.58,0.00025,120]
[343998644,1733173885937,-1377.31,0.00025,120]
[343998645,1733173885946,-652.33,0.00025,120]
[343998646,1733173885956,-500.0,0.00025,2]
[343998647,1733173885966,-500.0,0.00025,120]
[343998648,1733173885975,-375.88865946,0.00025,120]
[343998649,1733173885984,-500.0,0.00025,120]
[343998650,1733173885994,-885.1,0.00025,2]
[343998651,1733173886004,-500.0,0.00025,120]
[343998652,1733173886013,-1075.95,0.00025,120]
[343998653,1733173886023,-500.0,0.00025,120]
[343998654,1733173886033,-500.0591409,0.00025,120]
[343998655,1733173886043,-500.0,0.00025,120]
[343998656,1733173886053,-1729.83,0.00025,120]
[343998657,1733173886064,-666.69,0.00025,120]
[343998658,1733173886075,-1047.59,0.00025,120]
[343998659,1733173886085,-781.9,0.00025,120]
[343998660,1733173886097,-500.0,0.00025,120]
[343998661,1733173886107,-681.91,0.00025,120]
[343998662,1733173886117,-715.49,0.00025,120]
[343998663,1733173886127,-500.0,0.00025,120]
[343998664,1733173886136,-500.0,0.00025,120]
[343998665,1733173886145,-500.0,0.00025,120]
[343998666,1733173886155,-500.0,0.00025,120]
[343998667,1733173886164,-500.0,0.00025,120]
[343998668,1733173886173,-1708.0,0.00025,2]
[343998669,1733173886182,-500.0,0.00025,2]
[343998670,1733173886192,-500.0,0.00025,120]
[343998671,1733173886201,-500.0,0.00025,120]
[343998672,1733173886210,-1658.11,0.00025,120]
[343998673,1733173886224,-500.0,0.00025,120]
[343998674,1733173886238,-500.0,0.00025,120]
[343998675,1733173886248,-500.0,0.00025,90]
[343998676,1733173886258,-500.0,0.00025,120]
[343998677,1733173886267,-500.0,0.00025,120]
[343998678,1733173886277,-500.0,0.00025,120]
[343998679,1733173886287,-500.0,0.00025,120]
[343998680,1733173886296,-500.0,0.00025,120]
[343998681,1733173886305,-500.0,0.00025,120]
[343998682,1733173886314,-1024.52,0.00025,120]
[343998683,1733173886324,-500.0,0.00025,120]
[343998684,1733173886337,-2072.56,0.00025,120]
[343998685,1733173886356,-1959.08,0.00025,120]
[343998686,1733173886365,-500.0,0.00025,120]
[343998687,1733173886375,-314.62054968,0.00025,120]
[343998688,1733173886384,-979.74,0.00025,120]
[343998689,1733173886393,-500.0,0.00025,120]
[343998690,1733173886402,-271.64862977,0.00025,120]
[343998691,1733173886412,-660.29,0.00025,120]
[343998692,1733173886421,-500.0,0.00025,120]
[343998693,1733173886431,-1650.66,0.00025,120]
[343998694,1733173886440,-5045.62,0.00025,120]
[343998695,1733173886449,-500.0,0.00025,120]
[343998696,1733173886458,-897.7,0.00025,120]
[343998697,1733173886468,-500.0,0.00025,60]
[343998698,1733173886478,-500.0,0.00025,120]
[343998699,1733173886487,-500.0,0.00025,120]
[343998700,1733173886497,-500.0,0.00025,120]
[343998701,1733173886506,-500.0,0.00025,120]
[343998702,1733173886515,-500.0,0.00025,120]
[343998703,1733173886525,-2101.0,0.00025,120]
[343998704,1733173886534,-1756.07,0.00025,120]
[343998705,1733173886543,-500.0,0.00025,120]
[343998706,1733173886552,-500.0,0.00025,120]
[343998707,1733173886562,-1109.12,0.00025,120]
[343998708,1733173886571,-1685.71,0.00025,120]
[343998709,1733173886581,-571.56,0.00025,120]
[343998710,1733173886592,-500.0,0.00025,120]
[343998711,1733173886601,-503.6,0.00025,120]
[343998712,1733173886611,-500.0,0.00025,120]
[343998713,1733173886621,-2455.85,0.00025,120]
[343998714,1733173886631,-767.43,0.00025,120]
[343998715,1733173886641,-3414.81,0.00025,120]
[343998716,1733173886651,-500.0,0.00025,120]
[343998717,1733173886662,-857.49,0.00025,120]
[343998718,1733173886674,-500.0,0.00025,120]
[343998719,1733173886685,-500.0,0.00025,120]
[343998720,1733173886695,-511.83,0.00025,120]
[343998721,1733173886705,-921.9,0.00025,120]
[343998722,1733173886716,-500.0,0.00025,120]
[343998723,1733173886727,-2418.81,0.00025,120]
[343998724,1733173886740,-790.55,0.00025,120]
[343998725,1733173886751,-500.0,0.00025,120]
[343998726,1733173886761,-614.05,0.00025,120]
[343998727,1733173886771,-508.70272886,0.00025,120]
[343998728,1733173886782,-782.98623294,0.00025,2]
[343998729,1733173886792,-2246.95,0.00025,120]
[343998730,1733173886802,-500.0,0.00025,120]
[343998731,1733173886813,-1254.54,0.00025,120]
[343998732,1733173886824,-500.0,0.00025,120]
[343998733,1733173886834,-500.0,0.00025,120]
[343998734,1733173886846,-500.0,0.00025,120]
[343998735,1733173886855,-520.0258572,0.00025,120]
[343998736,1733173886867,-500.0,0.00025,120]
[343998737,1733173886879,-500.0,0.00025,120]
[343998738,1733173886888,-500.0,0.00025,120]
[343998739,1733173886898,-500.0,0.00025,120]
[343998740,1733173886907,-500.0,0.00025,120]
[343998741,1733173886917,-500.0,0.00025,120]
[343998742,1733173886926,-500.0,0.00025,120]
[343998743,1733173886936,-500.0,0.00025,120]
[343998744,1733173886947,-500.0,0.00025,120]
[343998745,1733173886958,-500.0,0.00025,120]
[343998746,1733173886968,-500.0,0.00025,120]
[343998747,1733173886978,-500.0,0.00025,120]
[343998748,1733173886988,-500.0,0.00025,120]
[343998749,1733173886998,-500.0,0.00025,120]
[343998750,1733173887007,-500.0,0.00025,120]
[343998751,1733173887016,-500.0,0.00025,120]
[343998752,1733173887026,-376.34,0.00025,120]
[343998753,1733173887036,-500.0,0.00025,120]
[343998754,1733173887045,-500.0,0.00025,120]
[343998755,1733173887055,-500.0,0.00025,120]
[343998756,1733173887064,-500.0,0.00025,120]
[343998757,1733173887074,-1323.8,0.00025,120]
[343998758,1733173887083,-500.0,0.00025,120]
[343998759,1733173887095,-500.0,0.00025,120]
[343998760,1733173887104,-500.0,0.00025,120]
[343998761,1733173887115,-500.0,0.00025,120]
[343998762,1733173887124,-500.0,0.00025,120]
[343998763,1733173887134,-500.0,0.00025,120]
[343998764,1733173887144,-500.0,0.00025,120]
[343998765,1733173887154,-500.0,0.00025,120]
[343998766,1733173887164,-500.0,0.00025,120]
[343998767,1733173887174,-620.45,0.00025,120]
[343998768,1733173887184,-500.0,0.00025,120]
[343998769,1733173887451,-512.43,0.00025,120]
[343998770,1733173887461,-500.0,0.00025,120]
[343998771,1733173887470,-500.0,0.00025,120]
[343998772,1733173887480,-500.0,0.00025,120]
[343998773,1733173887489,-500.0,0.00025,120]
[343998774,1733173887498,-500.0,0.00025,120]
[343998775,1733173887508,-500.0,0.00025,120]
[343998776,1733173887518,-500.0,0.00025,120]
[343998777,1733173887527,-500.0,0.00025,120]
[343998778,1733173887537,-500.0,0.00025,120]
[343998779,1733173887546,-500.0,0.00025,120]
[343998780,1733173887555,-500.0,0.00025,120]
[343998781,1733173887565,-500.0,0.00025,120]
[343998782,1733173887575,-500.0,0.00025,120]
[343998783,1733173887584,-500.0,0.00025,120]
[343998784,1733173887599,-500.0,0.00025,120]
[343998785,1733173887609,-500.0,0.00025,120]
[343998786,1733173887619,-500.0,0.00025,120]
[343998787,1733173887629,-500.0,0.00025,120]
[343998788,1733173887639,-500.0,0.00025,120]
[343998789,1733173887649,-500.0,0.00025,120]
[343998790,1733173887659,-2292.53,0.00025,120]
[343998791,1733173887668,-500.0,0.00025,120]
[343998792,1733173887678,-500.0,0.00025,120]
[343998793,1733173887688,-500.0,0.00025,120]
[343998794,1733173887698,-500.0,0.00025,120]
[343998795,1733173887708,-500.0,0.00025,120]
[343998796,1733173887717,-500.0,0.00025,120]
[343998797,1733173887727,-546.05645567,0.00025,120]
[343998798,1733173887736,-500.0,0.00025,120]
[343998799,1733173887746,-500.0,0.00025,120]
[343998800,1733173887755,-500.0,0.00025,120]
[343998801,1733173887765,-500.0,0.00025,120]
[343998802,1733173887774,-500.0,0.00025,120]
[343998803,1733173887784,-510.88230031,0.00025,120]
[343998804,1733173887794,-607.8,0.00025,120]
[343998805,1733173887805,-585.33,0.00025,120]
[343998806,1733173887815,-500.0,0.00025,120]
[343998807,1733173887824,-500.0,0.00025,120]
[343998808,1733173887834,-500.0,0.00025,120]
[343998809,1733173887847,-500.0,0.00025,120]
[343998810,1733173887859,-500.0,0.00025,120]
[343998811,1733173887869,-500.0,0.00025,120]
[343998812,1733173887879,-500.0,0.00025,120]
[343998813,1733173887889,-500.0,0.00025,120]
[343998814,1733173887898,-500.0,0.00025,120]
[343998815,1733173887908,-500.0,0.00025,120]
[343998816,1733173887918,-500.0,0.00025,120]
[343998817,1733173887928,-500.0,0.00025,120]
[343998818,1733173887937,-1245.89,0.00025,120]
[343998819,1733173887947,-549.56,0.00025,120]
[343998820,1733173887956,-507.3657551,0.00025,120]
[343998821,1733173887966,-737.02,0.00025,120]
[343998822,1733173887975,-500.0,0.00025,120]
[343998823,1733173887986,-684.34,0.00025,60]
[343998824,1733173887996,-500.0,0.00025,120]
[343998825,1733173888006,-604.42,0.00025,120]
[343998826,1733173888016,-500.0,0.00025,120]
[343998827,1733173888026,-500.0,0.00025,120]
[343998828,1733173888036,-500.0,0.00025,30]
[343998829,1733173888046,-504.21375773,0.00025,120]
[343998830,1733173888057,-777.5,0.00025,120]
[343998831,1733173888067,-500.0,0.00025,120]
[343998832,1733173888077,-828.94,0.00025,120]
[343998833,1733173888088,-500.0,0.00025,120]
[343998834,1733173888102,-500.0,0.00025,120]
[343998835,1733173888112,-500.0,0.00025,120]
[343998836,1733173888122,-2016.79,0.00025,120]
[343998837,1733173888132,-500.0,0.00025,120]
[343998838,1733173888142,-1832.25,0.00025,120]
[343998839,1733173888152,-500.0,0.00025,120]
[343998840,1733173888162,-500.0,0.00025,120]
[343998841,1733173888171,-866.0,0.00025,120]
[343998842,1733173888181,-500.0,0.00025,120]
[343998843,1733173888190,-500.0,0.00025,120]
[343998844,1733173888200,-500.0,0.00025,120]
[343998845,1733173888209,-500.0,0.00025,120]
[343998846,1733173888218,-2664.77,0.00025,120]
[343998847,1733173888228,-2674.28,0.00025,120]
[343998848,1733173888238,-1112.26,0.00025,120]
[343998849,1733173888247,-2232.19,0.00025,120]
[343998850,1733173888257,-742.5,0.00025,120]
[343998851,1733173888267,-500.0,0.00025,120]
[343998852,1733173888277,-1190.43,0.00025,120]
[343998853,1733173888287,-500.0,0.00025,120]
[343998854,1733173888296,-500.0,0.00025,120]
[343998855,1733173888306,-500.0,0.00025,120]
[343998856,1733173888315,-541.44699893,0.00025,120]
[343998857,1733173888326,-500.0,0.00025,120]
[343998858,1733173888335,-610.61,0.00025,120]
[343998859,1733173888349,-500.0,0.00025,120]
[343998860,1733173888359,-500.0,0.00025,120]
[343998861,1733173888370,-4399.78,0.00025,120]
[343998862,1733173888379,-500.0,0.00025,120]
[343998863,1733173888389,-3599.49,0.00025,120]
[343998864,1733173888399,-332.95270694,0.00025,120]
[343998865,1733173888409,-561.91,0.00025,120]
[343998866,1733173888418,-500.0,0.00025,120]
[343998867,1733173888428,-500.0,0.00025,120]
[343998868,1733173888438,-500.0,0.00025,120]
[343998869,1733173888447,-1229.73,0.00025,120]
[343998870,1733173888457,-500.0,0.00025,120]
[343998871,1733173888466,-500.0,0.00025,120]
[343998872,1733173888476,-2211.24,0.00025,120]
[343998873,1733173888486,-835.68,0.00025,120]
[343998874,1733173888496,-911.82,0.00025,120]
[343998875,1733173888505,-500.0,0.00025,120]
[343998876,1733173888514,-526.72653881,0.00025,120]
[343998877,1733173888524,-3073.1,0.00025,120]
[343998878,1733173888534,-500.0,0.00025,120]
[343998879,1733173888543,-500.0,0.00025,120]
[343998880,1733173888553,-950.19,0.00025,120]
[343998881,1733173888563,-2188.0,0.00025,120]
[343998882,1733173888573,-500.0,0.00025,120]
[343998883,1733173888583,-500.0,0.00025,120]
[343998884,1733173888597,-720.05,0.00025,120]
[343998885,1733173888607,-500.0,0.00025,120]
[343998886,1733173888618,-1070.7,0.00025,120]
[343998887,1733173888630,-745.59,0.00025,120]
[343998888,1733173888640,-500.0,0.00025,120]
[343998889,1733173888650,-500.0,0.00025,120]
[343998890,1733173888660,-500.0,0.00025,120]
[343998891,1733173888670,-500.0,0.00025,120]
[343998892,1733173888679,-1469.21,0.00025,120]
[343998893,1733173888689,-558.2,0.00025,120]
[343998894,1733173888698,-1205.37,0.00025,120]
[343998895,1733173888708,-573.97,0.00025,120]
[343998896,1733173888717,-500.0,0.00025,120]
[343998897,1733173888727,-500.0,0.00025,120]
[343998898,1733173888737,-2195.48,0.00025,120]
[343998899,1733173888746,-500.0,0.00025,120]
[343998900,1733173888755,-500.0,0.00025,120]
[343998901,1733173888765,-4194.31,0.00025,120]
[343998902,1733173888775,-500.0,0.00025,120]
[343998903,1733173888786,-534.37,0.00025,120]
[343998904,1733173888796,-700.39,0.00025,120]
[343998905,1733173888806,-3043.63,0.00025,120]
[343998906,1733173888815,-1907.51,0.00025,120]
[343998907,1733173888825,-500.0,0.00025,120]
[343998908,1733173888835,-500.0,0.00025,120]
[343998909,1733173888848,-701.19,0.00025,120]
[343998910,1733173888858,-628.49,0.00025,120]
[343998911,1733173888869,-347.65010157,0.00025,120]
[343998912,1733173888880,-700.0,0.00025,2]
[343998913,1733173888891,-1063.88,0.00025,120]
[343998914,1733173888902,-500.0,0.00025,120]
[343998915,1733173888913,-500.0,0.00025,120]
[343998916,1733173888923,-500.0,0.00025,120]
[343998917,1733173888933,-500.0,0.00025,120]
[343998918,1733173888943,-508.80012363,0.00025,120]
[343998919,1733173888953,-725.89,0.00025,120]
[343998920,1733173888963,-681.62,0.00025,120]
[343998921,1733173888973,-656.93,0.00025,120]
[343998922,1733173888983,-500.0,0.00025,120]
[343998923,1733173888992,-500.0,0.00025,120]
[343998924,1733173889002,-732.6,0.00025,120]
[343998925,1733173889012,-500.0,0.00025,120]
[343998926,1733173889022,-500.0,0.00025,120]
[343998927,1733173889032,-3453.59,0.00025,120]
[343998928,1733173889041,-2009.84,0.00025,120]
[343998929,1733173889051,-543.11,0.00025,120]
[343998930,1733173889060,-500.0,0.00025,120]
[343998931,1733173889070,-500.0,0.00025,120]
[343998932,1733173889080,-500.0,0.00025,120]
[343998933,1733173889091,-685.32,0.00025,120]
[343998934,1733173889101,-1106.22,0.00025,120]
[343998935,1733173889110,-500.0,0.00025,120]
[343998936,1733173889121,-939.38,0.00025,120]
[343998937,1733173889131,-500.0,0.00025,120]
[343998938,1733173889141,-1263.99,0.00025,120]
[343998939,1733173889151,-532.7,0.00025,120]
[343998940,1733173889161,-500.0,0.00025,120]
[343998941,1733173889170,-872.04,0.00025,120]
[343998942,1733173889181,-500.0,0.00025,120]
[343998943,1733173889191,-2718.69,0.00025,120]
[343998944,1733173889202,-500.0,0.00025,120]
[343998945,1733173889211,-624.53,0.00025,120]
[343998946,1733173889221,-500.0,0.00025,120]
[343998947,1733173889231,-500.0,0.00025,120]
[343998948,1733173889241,-500.0,0.00025,120]
[343998949,1733173889251,-500.0,0.00025,120]
[343998950,1733173889260,-2528.31,0.00025,120]
[343998951,1733173889269,-500.0,0.00025,120]
[343998952,1733173889278,-2125.85,0.00025,120]
[343998953,1733173889288,-500.0,0.00025,120]
[343998954,1733173889298,-500.0,0.00025,120]
[343998955,1733173889308,-500.0,0.00025,120]
[343998956,1733173889317,-500.0,0.00025,120]
[343998957,1733173889326,-500.0,0.00025,120]
[343998958,1733173889336,-500.0,0.00025,120]
[343998959,1733173889352,-500.0,0.00025,120]
[343998960,1733173889362,-500.0,0.00025,120]
[343998961,1733173889372,-2200.01,0.00025,120]
[343998962,1733173889381,-500.0,0.00025,120]
[343998963,1733173889391,-572.02,0.00025,120]
[343998964,1733173889402,-500.0,0.00025,120]
[343998965,1733173889412,-949.33,0.00025,120]
[343998966,1733173889422,-525.15,0.00025,120]
[343998967,1733173889432,-938.16,0.00025,120]
[343998968,1733173889443,-766.32,0.00025,120]
[343998969,1733173889453,-516.46,0.00025,120]
[343998970,1733173889464,-500.0,0.00025,120]
[343998971,1733173889473,-1342.32,0.00025,120]
[343998972,1733173889484,-533.10175334,0.00025,120]
[343998973,1733173889495,-500.0,0.00025,120]
[343998974,1733173889506,-500.0,0.00025,120]
[343998975,1733173889516,-500.0,0.00025,120]
[343998976,1733173889526,-695.31,0.00025,120]
[343998977,1733173889537,-500.0,0.00025,120]
[343998978,1733173889547,-500.0,0.00025,120]